fUSD/lending_fUSD_20240630
["ID","MTS","AMOUNT","RATE_DAILY","PERIOD"]
[330788799,1719786634520,-557.53573856,0.00013543,2]
[330788800,1719786634530,-155.0,0.00013574,2]
[330788801,1719786634539,-846.36534711,0.00013574,2]
[330788802,1719786634548,-689.22,0.00013699,2]
[330788803,1719786634559,-160.08,0.00013699,2]
[330788804,1719786634568,-1362.38,0.00013699,2]
[330788805,1719786634578,-200.0,0.00013699,2]
[330788806,1719786634589,-150.0,0.0001371,2]
[330788807,1719786634599,-150.0,0.00013713,2]
[330788808,1719786634609,-150.0,0.00013722,2]
[330788809,1719786634618,-4875.34820489,0.00013723,2]
[330788810,1719786634631,-347.16179511,0.00013723,2]
[330788811,1719786634640,-150.0,0.00013725,2]
[330788812,1719786634650,-150.0,0.00013725,2]
[330788813,1719786634659,-150.0,0.00013729,2]
[330788814,1719786634668,-150.0,0.0001373,2]
[330788815,1719786634678,-1.99721803,0.00013735,2]
[330788816,1719786634690,-148.00278197,0.00013735,2]
[330788817,1719786634704,-150.0,0.00013741,2]
[330788818,1719786634713,-150.0,0.00013741,2]
[330788819,1719786634722,-150.0,0.00013745,2]
[330788820,1719786634732,-150.0,0.00013746,2]
[330788821,1719786634743,-150.0,0.00013751,2]
[330788822,1719786634753,-150.0,0.00013752,2]
[330788823,1719786634763,-47.18864049,0.00013752,2]
[330788824,1719786634775,-255.43135951,0.00013752,2]
[330788825,1719786634785,-193.31739936,0.00013753,2]
[330788826,1719786634800,-615.25441392,0.00013753,2]
[330788827,1719786634811,-191.42818672,0.00013753,2]
[330788828,1719786634822,-150.0,0.00013754,2]
[330788829,1719786634831,-150.0,0.00013754,2]
[330788830,1719786634840,-52.59181328,0.00013754,2]
[330788831,1719786634852,-97.40818672,0.00013754,2]
[330788832,1719786634862,-150.0,0.00013755,2]
[330788833,1719786634872,-144.49331328,0.00013758,2]
[330788834,1719786634884,-5.50668672,0.00013758,2]
[330788835,1719786634894,-227.04865744,0.00013759,2]
[330788836,1719786634903,-150.0,0.00013759,2]
[330788837,1719786634912,-150.0,0.00013771,2]
[330788838,1719786634922,-150.0,0.00013771,2]
[330788839,1719786634931,-52.05215794,0.00013774,2]
[330788840,1719786634956,-97.94784206,0.00013774,2]
[330788841,1719786634966,-150.0,0.0001378,2]
[330788842,1719786634976,-150.0,0.00013785,2]
[330788843,1719786634987,-6.77215774,0.00013786,2]
[330788844,1719786634999,-143.22784226,0.00013786,2]
[330788845,1719786635008,-150.0,0.00013788,2]
[330788846,1719786635018,-150.0,0.00013789,2]
[330788847,1719786635028,-150.0,0.00013791,2]
[330788848,1719786635038,-6.77215774,0.00013791,2]
[330788849,1719786635080,-143.22784226,0.00013791,2]
[330788850,1719786635090,-150.0,0.00013792,2]
[330788851,1719786635100,-150.0,0.00013796,2]
[330788852,1719786635109,-150.0,0.00013797,2]
[330788853,1719786635119,-150.0,0.000138,2]
[330788854,1719786635129,-150.0,0.000138,2]
[330788855,1719786635138,-150.0,0.00013801,2]
[330788856,1719786635147,-150.0,0.00013804,2]
[330788857,1719786635157,-150.0,0.00013805,2]
[330788858,1719786635168,-150.0,0.00013808,2]
[330788859,1719786635178,-150.0,0.00013808,2]
[330788860,1719786635187,-150.0,0.00013816,2]
[330788861,1719786635196,-150.0,0.00013818,2]
[330788862,1719786635207,-150.0,0.00013822,2]
[330788863,1719786635216,-1000.0,0.00013822,2]
[330788864,1719786635226,-150.0,0.00013823,2]
[330788865,1719786635238,-150.0,0.00013829,2]
[330788866,1719786635247,-150.0,0.0001383,2]
[330788867,1719786635256,-150.0,0.00013838,2]
[330788868,1719786635265,-150.0,0.0001384,2]
[330788869,1719786635274,-150.0,0.0001384,2]
[330788870,1719786635284,-150.0,0.00013847,2]
[330788871,1719786635293,-150.0,0.00013852,2]
[330788872,1719786635303,-150.0,0.00013852,2]
[330788873,1719786635312,-150.0,0.00013858,2]
[330788874,1719786635323,-150.0,0.00013859,2]
[330788875,1719786635333,-150.0,0.00013859,2]
[330788876,1719786635342,-150.0,0.00013859,2]
[330788877,1719786635352,-150.27181,0.0001386,2]
[330788878,1719786635361,-7297.20034774,0.0001386,2]
[330788879,1719786635375,-499.6,0.0001386,2]
[330788880,1719786635386,-999.9006,0.0001386,2]
[330788881,1719786635397,-1000.3932,0.0001386,2]
[330788882,1719786635409,-700.0,0.0001386,2]
[330788883,1719786635420,-1065.52510734,0.0001386,2]
[330788884,1719786635429,-150.0,0.00013865,2]
[330788885,1719786635440,-150.0,0.00013867,2]
[330788886,1719786635451,-150.0,0.00013868,2]
[330788887,1719786635460,-150.0,0.00013871,2]
[330788888,1719786635469,-150.0,0.00013873,2]
[330788889,1719786635480,-150.0,0.00013877,2]
[330788890,1719786635491,-150.0,0.00013885,2]
[330788891,1719786635500,-150.0,0.00013885,2]
[330788892,1719786635509,-150.0,0.00013887,2]
[330788893,1719786635518,-385.10220627,0.00013891,2]
[330788894,1719786635527,-150.0,0.00013893,2]
[330788895,1719786635536,-416.74693327,0.00013894,2]
[330788896,1719786635546,-150.0,0.00013898,2]
[330788897,1719786635555,-150.0,0.00013898,2]
[330788898,1719786635564,-720.52768086,0.00013899,2]
[330788899,1719786635574,-150.0,0.00013906,2]
[330788900,1719786635584,-150.0,0.00013908,2]
[330788901,1719786635593,-150.0,0.00013914,2]
[330788902,1719786635602,-150.0,0.00013917,2]
[330788903,1719786635611,-150.0,0.00013917,2]
[330788904,1719786635621,-150.0,0.00013918,2]
[330788905,1719786635631,-150.0,0.00013919,2]
[330788906,1719786635640,-150.0,0.00013933,2]
[330788907,1719786635650,-150.0,0.0001394,2]
[330788908,1719786635660,-150.0,0.00013941,2]
[330788909,1719786635670,-150.0,0.00013942,2]
[330788910,1719786635679,-150.0,0.00013942,2]
[330788911,1719786635689,-150.0,0.00013945,2]
[330788912,1719786635699,-150.0,0.00013946,2]
[330788913,1719786635708,-150.0,0.00013946,2]
[330788914,1719786635722,-150.0,0.00013947,2]
[330788915,1719786635731,-150.0,0.0001395,2]
[330788916,1719786635744,-150.0,0.0001395,2]
[330788917,1719786635758,-150.0,0.00013958,2]
[330788918,1719786635767,-150.0,0.00013963,2]
[330788919,1719786635777,-150.0,0.00013965,2]
[330788920,1719786635786,-150.0,0.00013966,2]
[330788921,1719786635800,-150.0,0.00013968,2]
[330788922,1719786635810,-150.0,0.00013969,2]
[330788923,1719786635819,-150.0,0.00013969,2]
[330788924,1719786635829,-150.0,0.00013974,2]
[330788925,1719786635839,-150.0,0.00013976,2]
[330788926,1719786635849,-150.0,0.00013979,2]
[330788927,1719786635858,-150.0,0.0001398,2]
[330788928,1719786635868,-150.0,0.00013983,2]
[330788929,1719786635878,-150.0,0.00013983,2]
[330788930,1719786635887,-150.0,0.00013986,2]
[330788931,1719786635897,-150.0,0.00013989,2]
[330788932,1719786635907,-127.28465842,0.00014,2]
[330788933,1719786635917,-1000.0,0.000141,2]
[330788934,1719786635927,-1000.0,0.000141,2]
[330788935,1719786635936,-150.0,0.000142,2]
[330788936,1719786635946,-173.22,0.00014208,2]
[330788937,1719786635955,-858.720178,0.00014247,2]
[330788938,1719786635965,-1000.0,0.000143,2]
[330788939,1719786635974,-160.0,0.00014359,2]
[330788940,1719786635985,-150.27181,0.0001438,2]
[330788941,1719786635996,-500.0,0.0001439,2]
[330788942,1719786636005,-700.1516,0.0001439,2]
[330788943,1719786636016,-500.0,0.00014398,2]
[330788944,1719786636026,-1000.0,0.000144,2]
[330788945,1719786636035,-500.0,0.00014407,2]
[330788946,1719786636045,-500.0,0.00014416,2]
[330788947,1719786636054,-500.0,0.00014425,2]
[330788948,1719786636064,-500.0,0.00014434,2]
[330788949,1719786636073,-500.0,0.00014442,2]
[330788950,1719786636083,-500.0,0.00014451,2]
[330788951,1719786636093,-500.0,0.0001446,2]
[330788952,1719786636102,-500.0,0.00014469,2]
[330788953,1719786636112,-500.0,0.00014478,2]
[330788954,1719786636122,-500.0,0.00014486,2]
[330788955,1719786636131,-500.0,0.00014495,2]
[330788956,1719786636141,-500.0,0.00014504,2]
[330788957,1719786636150,-500.0,0.00014513,2]
[330788958,1719786636160,-500.0,0.00014522,2]
[330788959,1719786636170,-500.0,0.0001453,2]
[330788960,1719786636179,-840.0,0.00014534,2]
[330788961,1719786636189,-500.0,0.00014539,2]
[330788962,1719786636199,-500.0,0.00014548,2]
[330788963,1719786636208,-500.0,0.00014557,2]
[330788964,1719786636218,-500.0,0.00014557,2]
[330788965,1719786636227,-500.0,0.00014566,2]
[330788966,1719786636242,-500.0,0.00014566,2]
[330788967,1719786636251,-942.0,0.00014567,2]
[330788968,1719786636260,-500.0,0.00014574,2]
[330788969,1719786636268,-500.0,0.00014574,2]
[330788970,1719786636473,-500.0,0.00014583,2]
[330788971,1719786636483,-500.0,0.00014592,2]
[330788972,1719786636496,-500.0,0.00014601,2]
[330788973,1719786636506,-500.0,0.0001461,2]
[330788974,1719786636516,-500.0,0.00014618,2]
[330788975,1719786636525,-500.0,0.00014627,2]
[330788976,1719786636535,-500.0,0.00014636,2]
[330788977,1719786636546,-500.0,0.00014645,2]
[330788978,1719786636556,-500.0,0.00014654,2]
[330788979,1719786636566,-500.0,0.00014662,2]
[330788980,1719786636576,-500.0,0.00014671,2]
[330788981,1719786636586,-500.0,0.0001468,2]
[330788982,1719786636596,-500.0,0.00014689,2]
[330788983,1719786636606,-500.0,0.00014698,2]
[330788984,1719786636615,-1131.63565828,0.000147,2]
[330788985,1719786636625,-500.0,0.00014706,2]
[330788986,1719786636635,-500.0,0.00014715,2]
[330788987,1719786636645,-500.0,0.00014724,2]
[330788988,1719786636655,-500.0,0.00014733,2]
[330788989,1719786636664,-500.0,0.00014742,2]
[330788990,1719786636674,-500.0,0.0001475,2]
[330788991,1719786636684,-500.0,0.00014759,2]
[330788992,1719786636693,-500.0,0.00014768,2]
[330788993,1719786636712,-500.0,0.00014777,2]
[330788994,1719786636722,-500.0,0.00014786,2]
[330788995,1719786636731,-500.0,0.00014794,2]
[330788996,1719786636745,-387.355,0.00014799,2]
[330788997,1719786636754,-2417.7639,0.000148,2]
[330788998,1719786636764,-1217.1554,0.000148,2]
[330788999,1719786636773,-1176.003726,0.000148,2]
[330789000,1719786636783,-500.0,0.00014803,2]
[330789001,1719786636793,-1176.00372593,0.00014811,2]
[330789002,1719786636803,-500.0,0.00014812,2]
[330789003,1719786636812,-587.0,0.00014815,2]
[330789004,1719786636822,-500.0,0.00014821,2]
[330789005,1719786636832,-418.84,0.00014822,2]
[330789006,1719786636842,-853.72,0.00014822,2]
[330789007,1719786636852,-418.84,0.00014822,2]
[330789008,1719786636861,-853.72,0.00014822,2]
[330789009,1719786636871,-853.33,0.00014822,2]
[330789010,1719786636881,-418.63,0.00014822,2]
[330789011,1719786636890,-1176.00372593,0.00014822,2]
[330789012,1719786636899,-500.0,0.0001483,2]
[330789013,1719786636909,-1176.00372593,0.00014833,2]
[330789014,1719786636919,-500.0,0.00014838,2]
[330789015,1719786636928,-1176.00372593,0.00014844,2]
[330789016,1719786636937,-500.0,0.00014847,2]
[330789017,1719786636947,-1176.00372593,0.00014856,2]
[330789018,1719786636956,-500.0,0.00014856,2]
[330789019,1719786636966,-500.0,0.00014865,2]
[330789020,1719786636976,-63.42165523,0.00014867,2]
[330789021,1719786636991,-1112.5820707,0.00014867,2]
[330789022,1719786637000,-500.0,0.00014874,2]
[330789023,1719786637010,-5800.0,0.00014874,2]
[330789024,1719786637019,-1176.00372593,0.00014878,2]
[330789025,1719786637029,-500.0,0.00014879,2]
[330789026,1719786637038,-48.77409492,0.0001488,2]
[330789027,1719786637050,-451.22590508,0.0001488,2]
[330789028,1719786637059,-500.0,0.0001488,2]
[330789029,1719786637069,-500.0,0.0001488,2]
[330789030,1719786637078,-500.0,0.00014882,2]
[330789031,1719786637088,-1730.80582403,0.00014883,2]
[330789032,1719786637387,1494.60409603,0.00011199,2]
[330789037,1719786639204,-722.67910428,0.00014883,2]
[330789038,1719786639217,-2114.8729136,0.00014883,2]
[330789039,1719786639231,-1231.64215809,0.00014883,2]
[330789040,1719786639245,-1176.00372593,0.00014889,2]
[330789041,1719786639255,-622.53859256,0.0001489,2]
[330789042,1719786639266,-500.0,0.00014891,2]
[330789043,1719786639276,-622.53859254,0.00014891,2]
[330789044,1719786639286,-5800.0,0.00014891,2]
[330789045,1719786639296,-622.53859254,0.00014893,2]
[330789046,1719786639307,-622.53859254,0.00014894,2]
[330789047,1719786639318,-622.53859254,0.00014896,2]
[330789048,1719786639328,-622.53859254,0.00014897,2]
[330789049,1719786639338,-622.53859254,0.00014899,2]
[330789050,1719786639348,-2740.59105329,0.00014899,2]
[330789051,1719786639359,-410.29576172,0.00014899,3]
[330789052,1719786639369,-500.0,0.00014899,3]
[330789053,1719786639380,-500.0,0.00014899,3]
[330789054,1719786639391,-8165.59343002,0.000149,2]
[330789055,1719786639401,-2198.04749016,0.000149,2]
[330789056,1719786639412,-3059.15453116,0.000149,2]
[330789057,1719786639426,-1055.98696552,0.000149,2]
[330789058,1719786639469,-768.89775866,0.000149,2]
[330789059,1719786639482,-915.96074466,0.000149,2]
[330789060,1719786639496,-500.0,0.000149,2]
[330789061,1719786639507,-322.2678,0.000149,2]
[330789062,1719786639517,-5300.94953021,0.000149,2]
[330789063,1719786639529,-499.05046979,0.000149,2]
[330789064,1719786639540,-252.62553021,0.000149,2]
[330789065,1719786639552,-586.76358804,0.000149,2]
[330789066,1719786639564,-1004.37882857,0.000149,2]
[330789129,1719786640588,-364.51668827,0.000148,2]
[330789131,1719786640601,-199.78791173,0.000148,2]
[330789133,1719786640611,-63.00885891,0.000149,2]
[330789134,1719786640624,-8093.22319427,0.000149,2]
[330789135,1719786640634,-160.8988254,0.000149,2]
[330789136,1719786640644,-58000.0,0.000149,2]
[330789137,1719786640654,-544.91259336,0.000149,2]
[330789138,1719786640665,-1176.00372593,0.000149,2]
[330789139,1719786640675,-10141.85475226,0.000149,2]
[330789140,1719786640685,-7500.0,0.000149,2]
[330789141,1719786640695,-1422.4284512,0.000149,2]
[330789142,1719786640708,-442.95963584,0.000149,2]
[330789143,1719786640721,-162.19706699,0.000149,2]
[330789144,1719786640731,-340.10469759,0.000149,2]
[330789145,1719786640743,-228.17383828,0.000149,2]
[330789146,1719786640752,-622.53859254,0.000149,2]
[330789147,1719786640763,-680.96290638,0.0001497,2]
[330789148,1719786640773,-500.0,0.0001497,2]
[330789149,1719786640783,-500.0,0.0001497,2]
[330789150,1719786640796,-500.0,0.00014986,3]
[330789151,1719786640807,-495.81,0.00014986,3]
[330789152,1719786640817,-424.01,0.00014986,3]
[330789153,1719786640827,-274.51,0.00014986,3]
[330789154,1719786640838,-500.0,0.00014986,3]
[330789155,1719786640848,-500.0,0.00014986,3]
[330789156,1719786640858,-413.07,0.00014986,3]
[330789157,1719786640868,-500.0,0.00014986,3]
[330789158,1719786640878,-379.2223944,0.00014986,3]
[330789159,1719786640888,-500.0,0.00014986,3]
[330789160,1719786640897,-8383.570094,0.00014989,2]
[330789161,1719786640908,-22387.2970054,0.00014989,2]
[330789162,1719786640917,-897.22684161,0.00014989,2]
[330789163,1719786640927,-3270.0541084,0.00014989,2]
[330789164,1719786640936,-6956.5138611,0.0001499,2]
[330789165,1719786640945,-5529.4576281,0.0001499,2]
[330789166,1719786640955,-4102.4013952,0.0001499,2]
[330789167,1719786640964,-2675.3451623,0.0001499,2]
[330789168,1719786640973,-18576.5181402,0.0001499,2]
[330789169,1719786640983,-14765.7392749,0.0001499,2]
[330789170,1719786640994,-10954.9604096,0.0001499,2]
[330789171,1719786641003,-7144.1815443,0.0001499,2]
[330789172,1719786641012,-2690.0053298,0.0001499,2]
[330789173,1719786641022,-2109.9565512,0.0001499,2]
[330789174,1719786641032,-1529.9077725,0.0001499,2]
[330789175,1719786641041,-949.8589939,0.0001499,2]
[330789176,1719786641051,-10141.85475221,0.00014991,2]
[330789177,1719786641060,-262.58230778,0.00014999,2]
[330789178,1719786641070,-150.0,0.00014999,2]
[330789179,1719786641078,-307957.16486672,0.00015,2]
[330789181,1719786643015,-155.92035539,0.0001499,2]
[330789182,1719786643024,-654.0,0.00015,2]
[330789184,1719786643034,-335.41964821,0.00015,2]
[330789186,1719786643045,-7306.84064944,0.00015,2]
[330789205,1719786643220,-2064.49745634,0.00015,2]
[330789210,1719786643231,-2435.89868968,0.00015,2]
[330789267,1719786643438,-10533.89834832,0.00015,2]
[330789269,1719786643449,-33865.18101674,0.00015,2]
[330789285,1719786643535,-98.24049117,0.00015,2]
[330789326,1719786643768,-439.05999999,0.00015,2]
[330789328,1719786643779,-34390.87127365,0.00015,2]
[330789354,1719786644039,-12398.40100739,0.00015,2]
[330789401,1719786646208,-1728.82114959,0.00015,2]
[330789402,1719786646221,-29884.01435,0.00015,2]
[330789403,1719786648011,-250.0,0.00014471,2]
[330789404,1719786648020,-590.0,0.00015,2]
[330789405,1719786648029,-163621.77598776,0.00015,2]
[330789406,1719786648040,-125528.99012991,0.00015,2]
[330789407,1719786653504,1494.60409603,0.00011199,2]
[330789409,1719786710464,166.7,0.00011187,2]
[330789410,1719786725047,463.73418851,0.00011199,2]
[330789411,1719786736354,4624.27406555,0.00011199,2]
[330789414,1719786827036,13913.5650601,0.00011199,2]
[330789415,1719786899101,2232.43317456,0.00011199,2]
[330789417,1719786979398,1562.99457939,0.00011199,2]
[330789423,1719787056480,628.98934018,0.00011199,2]
[330789431,1719787102193,227.04865744,0.00011199,2]
[330789432,1719787106634,155.0,0.00011199,2]
[330789443,1719787274491,253.73055937,0.00011199,2]
[330789446,1719787349376,1132.0,0.00022,120]
[330789447,1719787376692,165.79,0.00010394,2]
[330789450,1719787399445,5596.00864109,0.00011199,2]
[330789474,1719787643486,612.13,0.00011025,2]
[330789539,1719787832178,-358.56718894,0.00011813,2]
[330789541,1719787832187,-178.4933045,0.00011913,2]
[330789542,1719787832196,-47.5350136,0.00012314,2]
[330789543,1719787832210,-291.91685016,0.00012314,2]
[330789544,1719787832222,-160.84207813,0.00012314,2]
[330789548,1719787832944,-368.65367856,0.00012314,2]
[330789549,1719787832953,-234.85432146,0.000129,2]
[330789550,1719787833120,-15.14567854,0.000129,2]
[330789551,1719787833132,-150.0,0.0001297,2]
[330789552,1719787833141,-250.0,0.00013043,2]
[330789553,1719787833151,-893.37,0.00013084,2]
[330789554,1719787833160,-1000.0,0.00013106,2]
[330789555,1719787833170,-258.6924005,0.00013128,2]
[330789556,1719787833179,-368.59840723,0.00013128,2]
[330789557,1719787833190,-151.31,0.00013209,2]
[330789558,1719787833202,-612.13,0.00013289,2]
[330789559,1719787833211,-8536.75351373,0.00013289,2]
[330789603,1719787838538,-13789.31068662,0.00013289,2]
[330789604,1719787838723,-1814.56851,0.00013289,2]
[330789605,1719787838735,-1138.18072319,0.00013289,2]
[330789606,1719787838747,-3172.83656646,0.00013289,2]
[330789607,1719787838758,-1092.18,0.00013581,2]
[330789608,1719787838767,-289.0,0.00013698,2]
[330789609,1719787838777,-300.0,0.00013698,2]
[330789610,1719787838787,-160.08,0.00013699,2]
[330789611,1719787838797,-344.61,0.00013699,2]
[330789612,1719787838806,-462.51,0.00013742,2]
[330789613,1719787838815,-196.04,0.00013833,2]
[330789614,1719787838824,-4202.14115354,0.0001387,2]
[330789615,1719787838836,-1690.07023087,0.0001387,2]
[330789616,1719787838846,-246.41,0.0001387,2]
[330789617,1719787838856,-151.31,0.00013897,2]
[330789618,1719787838866,-219.50626646,0.00013899,2]
[330789619,1719787838875,-1381.1924,0.000139,2]
[330789620,1719787838884,-150.0,0.00013905,2]
[330789621,1719787838895,-182.08348635,0.00013906,2]
[330789622,1719787838904,-982.94361376,0.00013909,2]
[330789623,1719787838914,-973.49303046,0.00013909,2]
[330789624,1719787838924,-14057.682635,0.00013987,2]
[330789625,1719787838934,-500.0,0.00013999,3]
[330789626,1719787838944,-500.0,0.00013999,3]
[330789627,1719787838954,-500.0,0.00013999,3]
[330789628,1719787838964,-242.54296779,0.00013999,3]
[330789629,1719787838975,-500.0,0.00013999,3]
[330789630,1719787838985,-425.44,0.00013999,3]
[330789631,1719787838994,-500.0,0.00013999,3]
[330789632,1719787839005,-500.0,0.00013999,3]
[330789633,1719787839015,-500.0,0.00013999,3]
[330789634,1719787839025,-596.09,0.00013999,3]
[330789635,1719787839036,-500.0,0.00013999,3]
[330789636,1719787839050,-611.36,0.00013999,3]
[330789637,1719787839065,-171.67,0.00013999,3]
[330789638,1719787839075,-500.0,0.00013999,3]
[330789639,1719787839086,-500.0,0.00013999,3]
[330789640,1719787839099,-500.0,0.00013999,3]
[330789641,1719787839110,-500.0,0.00013999,3]
[330789642,1719787839121,-500.0,0.00013999,3]
[330789643,1719787839132,-500.0,0.00013999,3]
[330789644,1719787839143,-500.0,0.00013999,3]
[330789645,1719787839154,-500.0,0.00013999,3]
[330789646,1719787839164,-500.0,0.00013999,3]
[330789647,1719787839175,-500.0,0.00013999,3]
[330789648,1719787839186,-474.58408131,0.00013999,3]
[330789649,1719787839196,-181.65,0.00013999,3]
[330789652,1719787839206,-209.92732211,0.00013999,3]
[330789655,1719787839217,-500.0,0.00013999,3]
[330789657,1719787839228,-524.18,0.00013999,3]
[330789658,1719787839238,-222.29,0.00013999,3]
[330789659,1719787839247,-204.47111461,0.00013999,3]
[330789660,1719787839258,-500.0,0.00013999,3]
[330789661,1719787839268,-227.36892724,0.00013999,3]
[330789662,1719787839490,-281.72107276,0.00013999,3]
[330789663,1719787839500,-500.0,0.00013999,3]
[330789664,1719787839510,-155.0,0.00014,2]
[330789665,1719787839520,-1702.45675927,0.00014,2]
[330789666,1719787839532,-5999.8,0.00014,2]
[330789667,1719787839544,-172542.36546272,0.00014,2]
[330789668,1719787839555,-3447.22339029,0.00014,2]
[330789669,1719787839567,-314.59,0.00014,2]
[330789670,1719787839596,-2541.99571369,0.00014,2]
[330789673,1719787840284,-3710.50686472,0.00014,2]
[330789674,1719787840297,-2949.78604586,0.00014,2]
[330789675,1719787840309,-408.75047878,0.00014,2]
[330789676,1719787840469,-88513.95765878,0.00014,2]
[330789677,1719787840647,-15001.91222307,0.00014,2]
[330789846,1719787843336,-13370.40175638,0.00014,2]
[330789847,1719787843347,-61619.72205648,0.00014,2]
[330789848,1719787843357,-201.8703823,0.00014009,2]
[330789849,1719787843366,-982.94361374,0.00014019,2]
[330789850,1719787843375,-973.49303041,0.00014019,2]
[330789851,1719787843384,-259.37,0.00014109,3]
[330789852,1719787843394,-532.74,0.00014109,3]
[330789853,1719787843403,-500.0,0.00014109,3]
[330789854,1719787843412,-500.0,0.00014109,3]
[330789855,1719787843422,-307.84,0.00014109,3]
[330789856,1719787843431,-500.0,0.00014109,3]
[330789857,1719787843441,-205.13,0.00014109,3]
[330789858,1719787843450,-500.0,0.00014109,3]
[330789859,1719787843459,-982.94361374,0.00014129,2]
[330789860,1719787843469,-973.49303041,0.00014129,2]
[330789861,1719787843480,-291.42,0.00014218,3]
[330789862,1719787843490,-500.0,0.00014218,3]
[330789863,1719787843499,-500.0,0.00014218,3]
[330789865,1719787843508,-161.78,0.00014218,3]
[330789867,1719787843518,-982.94361374,0.00014239,2]
[330789869,1719787843528,-973.49303041,0.00014239,2]
[330789871,1719787843537,-581.33,0.00014328,3]
[330789873,1719787843546,-304.06,0.00014328,3]
[330789874,1719787843556,-500.0,0.00014328,2]
[330789875,1719787843564,-500.0,0.00014337,2]
[330789876,1719787843574,-500.0,0.00014346,2]
[330789877,1719787843583,-982.94361374,0.00014349,2]
[330789878,1719787843592,-973.49303041,0.00014349,2]
[330789879,1719787843601,-500.0,0.00014354,2]
[330789880,1719787843610,-500.0,0.00014363,2]
[330789881,1719787843620,-500.0,0.00014372,2]
[330789882,1719787843629,-10000.0,0.00014377,2]
[330789883,1719787843639,-500.0,0.00014381,2]
[330789884,1719787843649,-500.0,0.0001439,2]
[330789885,1719787843658,-500.0,0.00014398,2]
[330789886,1719787843667,-500.0,0.00014407,2]
[330789887,1719787843677,-500.0,0.00014416,2]
[330789889,1719787843686,-500.0,0.00014425,2]
[330789891,1719787843696,-500.0,0.00014434,2]
[330789892,1719787843705,-500.0,0.00014442,2]
[330789893,1719787843715,-500.0,0.00014451,2]
[330789894,1719787843728,-982.94361374,0.0001446,2]
[330789895,1719787843737,-973.49303041,0.0001446,2]
[330789896,1719787843747,-500.0,0.0001446,2]
[330789897,1719787843756,-500.0,0.00014469,2]
[330789898,1719787843766,-500.0,0.00014478,2]
[330789899,1719787843775,-500.0,0.00014486,2]
[330789900,1719787843785,-500.0,0.00014495,2]
[330789901,1719787843794,-500.0,0.00014504,2]
[330789902,1719787843804,-500.0,0.00014513,2]
[330789903,1719787843813,-824.095225,0.00014521,2]
[330789904,1719787843823,-500.0,0.00014522,2]
[330789905,1719787843832,-500.0,0.0001453,2]
[330789906,1719787843842,-500.0,0.00014539,2]
[330789907,1719787843852,-500.0,0.00014548,2]
[330789908,1719787843861,-982.94361374,0.0001457,2]
[330789909,1719787843871,-973.49303041,0.0001457,2]
[330789910,1719787843881,-422.11385386,0.00014625,2]
[330789911,1719787843891,-168.92062026,0.00014656,2]
[330789912,1719787843900,-982.94361374,0.0001468,2]
[330789913,1719787843909,-973.49303041,0.0001468,2]
[330789914,1719787843919,-385.10220627,0.0001473,2]
[330789915,1719787843928,-150.0,0.00014734,2]
[330789916,1719787843938,-1000.0,0.00014744,2]
[330789917,1719787843952,-150.0,0.0001475,2]
[330789918,1719787843962,-150.0,0.00014751,2]
[330789919,1719787843974,-150.0,0.00014756,2]
[330789920,1719787843983,-150.0,0.0001478,2]
[330789921,1719787843993,-150.0,0.00014783,2]